bitfinex-derivatives/quotes_SOLF0:USTF0_20241218
["timestamp","ask_amount","ask_price","bid_price","bid_amount"]
[1734528550241,2.3003,217.41,217.36,4.5095]
[1734528550541,2.16,217.42,217.36,4.5095]
[1734528550742,4.4602,217.42,217.36,4.5095]
[1734528551445,4.4602,217.42,217.35,11.1773317]
[1734528551446,2.3002,217.42,217.38,2.3006]
[1734528551643,2.3002,217.42,217.35,11.1773317]
[1734528552045,2.3004,217.41,217.35,11.1773317]
[1734528552341,2.16,217.44,217.37,7.15553143]
[1734528552545,2.16,217.44,217.37,9.45623143]
[1734528553145,2.3002,217.42,217.37,9.45623143]
[1734528553446,2.16,217.44,217.37,9.45623143]
[1734528553644,2.3004,217.41,217.37,9.45623143]
[1734528554550,2.3004,217.41,217.38,2.3006]
[1734528555747,2.3004,217.41,217.39,7.15553143]
[1734528556048,5.5408438,217.52,217.39,7.15553143]
[1734528556249,2.16,217.51,217.43,7.15553143]
[1734528556447,2.2997,217.48,217.45,9.45533143]
[1734528556653,2.2997,217.48,217.45,7.15553143]
[1734528557448,2.16,217.51,217.45,7.15553143]
[1734528557648,2.2997,217.47,217.45,7.15553143]
[1734528557848,2.16,217.51,217.45,7.15553143]
[1734528558455,4.4595,217.5,217.43,11.17135642]
[1734528558849,4.4595,217.5,217.46,2.2997]
[1734528559545,2.2995,217.5,217.46,2.2997]
[1734528559853,4.4595,217.5,217.46,2.2997]
[1734528561946,2.2998,217.47,217.43,13.47145642]
[1734528563556,2.2996,217.49,217.45,2.2999]
[1734528563747,2.16,217.5,217.45,2.2999]
[1734528564055,2.16,217.5,217.43,11.17135642]
[1734528564253,2.2998,217.47,217.44,2.3]
[1734528565054,2.16,217.5,217.43,11.17135642]
[1734528566560,2.2995,217.49,217.45,2.2998]
[1734528566752,2.16,217.5,217.45,2.2998]
[1734528567161,2.2996,217.48,217.45,2.2998]
[1734528567861,189.2422241,217.58,217.47,11.17135642]
[1734528568062,189.2422241,217.58,217.53,11.17135642]
[1734528568360,0.37514,217.61,217.53,11.17135642]
[1734528568663,2.67344,217.61,217.56,2.2986]
[1734528568964,2.67344,217.61,217.53,11.17135642]
[1734528570361,0.37514,217.61,217.53,11.17135642]
[1734528571464,0.37514,217.61,217.56,2.2987]
[1734528572462,2.2984,217.6,217.56,2.2987]
[1734528572863,0.37514,217.61,217.56,2.2987]
[1734528573060,2.67334,217.61,217.56,2.2987]
[1734528573363,2.67334,217.61,217.57,2.2986]
[1734528574473,0.37514,217.61,217.57,2.2986]
[1734528574662,2.2983,217.6,217.57,2.2986]
[1734528575868,2.67334,217.61,217.57,2.2986]
[1734528576366,0.37514,217.61,217.56,11.17135642]
[1734528576679,0.37514,217.61,217.59,2.2984]
[1734528577663,0.37514,217.61,217.56,11.17135642]
[1734528577861,0.37514,217.61,217.6,2.2983]
[1734528580075,0.37514,217.61,217.6,9.43873619]
[1734528583872,0.37514,217.61,217.58,9.43893619]
[1734528584371,0.37514,217.61,217.6,7.14043619]
[1734528587077,0.37514,217.61,217.6,9.43873619]
[1734528587578,2.16,217.65,217.6,7.14043619]
[1734528587778,2.16,217.65,217.62,7.14043619]
[1734528587972,2.16,217.66,217.64,7.14043619]
[1734528588579,2.16,217.68,217.64,7.14043619]
[1734528588777,2.16,217.7,217.67,7.14043619]
[1734528589276,2.2975,217.69,217.67,7.14043619]
[1734528590279,2.2975,217.69,217.65,9.43823619]
[1734528590977,2.2975,217.69,217.67,7.14043619]
[1734528591372,2.2975,217.68,217.67,7.14043619]
[1734528591975,2.2975,217.68,217.65,2.2977]
[1734528592183,2.16,217.7,217.63,7.14043619]
[1734528592375,2.16,217.7,217.65,7.14043619]
[1734528592874,2.2977,217.67,217.65,7.14043619]
[1734528593075,2.16,217.7,217.65,7.14043619]
[1734528593278,2.16,217.7,217.64,7.14043619]
[1734528593583,2.16,217.69,217.64,7.14043619]
[1734528593981,2.2976,217.67,217.64,7.14043619]
[1734528595482,2.2978,217.65,217.64,7.14043619]
[1734528597381,2.2976,217.68,217.64,7.14043619]
[1734528597782,2.2976,217.67,217.64,9.43823619]
[1734528597982,2.2976,217.67,217.66,7.14043619]
[1734528598587,2.2976,217.67,217.65,7.14043619]
[1734528600287,2.16,217.69,217.55,1.4983]
[1734528600487,2.16,217.69,217.62,7.14043619]
[1734528600790,2.2978,217.65,217.62,7.14043619]
[1734528600990,2.2978,217.65,217.64,7.14043619]
[1734528601889,1.5226,217.72,217.64,7.14043619]
[1734528602087,5.52861894,217.74,217.67,7.14043619]
[1734528602293,2.16,217.73,217.67,7.14043619]
[1734528602489,2.16,217.73,217.65,7.14043619]
[1734528602793,9.30043619,217.72,217.64,7.14043619]
[1734528603395,2.2973,217.7,217.65,2.2978]
[1734528603597,9.30043619,217.72,217.65,2.2978]
[1734528603889,9.30043619,217.72,217.65,9.43823619]
[1734528604589,2.2975,217.69,217.65,9.43823619]
[1734528605291,2.2976,217.67,217.65,7.14043619]
[1734528605595,9.30043619,217.72,217.65,7.14043619]
[1734528605894,9.30043619,217.72,217.65,9.43823619]
[1734528606493,7.14043619,217.7,217.55,1.4983]
[1734528606790,7.14043619,217.68,217.55,1.4983]
[1734528606997,2.2982,217.62,217.6,7.14043619]
[1734528607298,2.16,217.67,217.6,7.14043619]
[1734528607602,2.16,217.67,217.63,7.14043619]
[1734528607787,2.2978,217.66,217.63,7.14043619]
[1734528608889,2.2979,217.65,217.61,2.2982]
[1734528609091,2.16,217.67,217.6,7.14043619]
[1734528609804,2.2979,217.64,217.6,9.43863619]
[1734528610996,7.14043619,217.63,217.55,1.4983]
[1734528611199,2.16,217.62,217.57,7.14043619]
[1734528611493,2.16,217.61,217.55,1.4983]
[1734528611690,2.16,217.62,217.55,1.4983]
[1734528612197,2.16,217.62,217.6,2.2983]
[1734528612398,2.16,217.62,217.61,7.14043619]
[1734528613992,2.16,217.62,217.59,2.2984]
[1734528614400,2.16,217.62,217.59,9.43883619]
[1734528620305,2.2979,217.64,217.61,7.14043619]
[1734528620502,2.14,217.63,217.61,7.14043619]
[1734528620999,2.14,217.63,217.61,9.43853619]
[1734528621394,2.14,217.63,217.61,2.2981]
[1734528622104,2.14,217.63,217.6,2.2983]
[1734528623396,9.28043619,217.63,217.53,3.0475]
[1734528623701,7.14043619,217.55,217.48,7.14043619]
[1734528624004,2.14,217.54,217.48,7.14043619]
[1734528624199,2.2992,217.52,217.48,9.43993619]
[1734528624505,2.14,217.54,217.5,7.14043619]
[1734528625502,2.14,217.54,217.45,1.5912]
[1734528625702,2.14,217.54,217.48,7.14043619]
[1734528625907,2.2991,217.53,217.49,2.2995]
[1734528627907,2.14,217.52,217.48,7.14043619]
[1734528628504,4.4392,217.52,217.48,9.43993619]
[1734528628813,2.14,217.52,217.48,7.14043619]
[1734528629000,2.14,217.52,217.5,7.14043619]
[1734528629609,2.14,217.53,217.5,7.14043619]
[1734528629906,2.14,217.55,217.45,9.30534003]
[1734528630113,2.14,217.56,217.52,7.14043619]
[1734528630308,2.14,217.55,217.53,2.299]
[1734528631099,2.14,217.55,217.45,9.30534003]
[1734528631400,2.14,217.56,217.53,7.14043619]
[1734528631605,2.14,217.57,217.55,7.14043619]
[1734528631806,2.14,217.58,217.55,7.14043619]
[1734528632201,1.5697,217.67,217.55,7.14043619]
[1734528632202,7.14043619,217.63,217.55,7.14043619]
[1734528632400,2.2983,217.6,217.56,2.2987]
[1734528632911,9.43873619,217.61,217.56,2.2987]
[1734528633111,7.14043619,217.61,217.56,2.2987]
[1734528634007,2.14,217.62,217.57,2.2985]
[1734528634213,3.0206,217.67,217.56,7.14043619]
[1734528634214,2.14,217.61,217.56,7.14043619]
[1734528634409,2.14,217.6,217.56,7.14043619]
[1734528634609,2.14,217.6,217.58,2.2984]
[1734528634813,2.14,217.6,217.56,7.14043619]
[1734528635208,2.14,217.6,217.57,2.2986]
[1734528635810,2.14,217.6,217.58,2.2985]
[1734528636311,4.4384,217.6,217.57,2.2986]
[1734528636509,4.4384,217.6,217.54,7.14043619]
[1734528636816,2.14,217.6,217.54,7.14043619]
[1734528637314,2.14,217.6,217.51,3.1749]
[1734528637510,2.14,217.6,217.54,7.14043619]
[1734528638317,4.4384,217.6,217.56,2.2987]
[1734528638719,9.28043619,217.6,217.51,3.1749]
[1734528638919,2.2985,217.59,217.55,2.2988]
[1734528639720,2.2985,217.58,217.55,2.2988]
[1734528640320,9.28043619,217.6,217.53,2.299]
[1734528641221,7.14043619,217.58,217.52,9.43953619]
[1734528641422,2.2987,217.57,217.52,7.14043619]
[1734528641721,7.14043619,217.58,217.52,7.14043619]
[1734528642221,2.2989,217.55,217.52,7.14043619]
[1734528642422,2.14,217.54,217.52,7.14043619]
[1734528642617,2.14,217.54,217.51,2.2992]
[1734528642919,2.14,217.54,217.45,7.16534003]
[1734528642920,2.2993,217.51,217.47,7.14043619]
[1734528643419,2.2992,217.52,217.47,9.44003619]
[1734528643621,9.28043619,217.54,217.47,9.44003619]
[1734528644217,9.28043619,217.54,217.47,2.2996]
[1734528644418,2.2993,217.52,217.48,7.14043619]
[1734528645222,2.2995,217.49,217.45,2.2999]
[1734528645421,2.14,217.48,217.45,2.2999]
[1734528645720,2.14,217.47,217.44,2.3]
[1734528646022,2.14,217.47,217.32,4.6126]
[1734528646226,7.14043619,217.46,217.39,7.14043619]
[1734528647018,2.14,217.47,217.41,9.44073619]
[1734528647325,2.14,217.47,217.41,7.14043619]
[1734528647530,2.14,217.47,217.4,2.3003]
[1734528648024,2.14,217.47,217.41,7.14043619]
[1734528648426,2.3,217.45,217.41,7.14043619]
[1734528648825,2.14,217.47,217.4,2.3003]
[1734528649127,2.3,217.44,217.4,2.3003]
[1734528650030,2.3001,217.43,217.39,9.44093619]
[1734528650320,2.14,217.42,217.37,7.14043619]
[1734528650521,2.14,217.41,217.37,2.3007]
[1734528650721,2.14,217.41,217.36,7.14043619]
[1734528650927,2.14,217.41,217.32,4.6126]
[1734528651127,7.14043619,217.4,217.34,9.44153619]
[1734528651318,7.14043619,217.4,217.34,2.3011]
[1734528651824,2.3006,217.39,217.34,2.3011]
[1734528652420,2.3006,217.39,217.34,9.44153619]
[1734528652625,2.3006,217.39,217.35,2.3009]
[1734528653326,2.14,217.41,217.32,8.56024066]
[1734528653627,2.3007,217.38,217.34,7.14043619]
[1734528653824,2.3007,217.38,217.33,2.3011]
[1734528654030,2.3007,217.38,217.33,9.44153619]
[1734528654330,2.3009,217.36,217.31,2.3013]
[1734528654628,2.14,217.35,217.31,9.44173619]
[1734528655725,2.14,217.35,217.31,2.3013]
[1734528656031,2.14,217.35,217.29,7.14043619]
[1734528656524,4.441,217.35,217.3,2.3014]
[1734528656728,2.14,217.35,217.31,7.14043619]
[1734528656932,2.14,217.34,217.31,7.14043619]
[1734528657435,2.14,217.34,217.32,2.3013]
[1734528657930,7.14043619,217.41,217.33,7.14043619]
[1734528658130,2.14,217.4,217.33,7.14043619]
[1734528658337,4.4405,217.4,217.35,2.3009]
[1734528659334,2.3006,217.39,217.35,2.3009]
[1734528659533,9.28043619,217.4,217.32,2.3012]
[1734528659835,2.3008,217.37,217.32,2.3012]
[1734528660037,7.14043619,217.38,217.31,2.3014]
[1734528660230,7.14043619,217.34,217.26,10.16523619]
[1734528660538,7.14043619,217.32,217.18,2.14]
[1734528660739,2.3017,217.29,217.24,7.14043619]
[1734528661837,2.14,217.31,217.24,7.14043619]
[1734528662030,2.14,217.31,217.26,2.3019]
[1734528662031,2.3015,217.3,217.26,2.3019]
[1734528662632,2.3016,217.29,217.26,2.3019]
[1734528662830,2.3016,217.29,217.22,5.54347901]
[1734528663032,2.14,217.31,217.22,5.54347901]
[1734528663231,2.14,217.31,217.19,1.5425]
[1734528663232,7.14043619,217.28,217.21,7.14043619]
[1734528663436,7.14043619,217.28,217.18,3.033]
[1734528663640,7.14043619,217.28,217.19,7.14043619]
[1734528663836,2.3022,217.24,217.19,7.14043619]
[1734528664037,2.16,217.23,217.19,7.14043619]
[1734528664236,2.16,217.23,217.21,2.3024]
[1734528664436,7.14043619,217.26,217.21,2.3024]
[1734528664733,2.16,217.25,217.21,7.14043619]
[1734528664934,2.16,217.24,217.21,7.14043619]
[1734528665239,2.16,217.27,217.26,2.3019]
[1734528665442,7.14043619,217.32,217.25,7.14043619]
[1734528665741,2.16,217.31,217.29,2.3016]
[1734528666235,2.16,217.31,217.3,2.3015]
[1734528666537,1.5125,217.37,217.29,7.14043619]
[1734528666538,2.16,217.34,217.29,7.14043619]
[1734528666736,2.16,217.34,217.33,2.3012]
[1734528667037,2.16,217.35,217.31,7.14043619]
[1734528667539,2.16,217.35,217.33,2.3011]
[1734528667740,9.44123619,217.37,217.33,2.3011]
[1734528668041,2.16,217.36,217.34,2.3011]
[1734528668840,52.62,217.41,217.29,4.6202]
[1734528669035,52.62,217.41,217.31,11.18577284]
[1734528669036,2.16,217.4,217.31,11.18577284]
[1734528670637,2.16,217.39,217.36,2.3008]
[1734528670941,2.16,217.39,217.31,11.18577284]
[1734528671240,2.3002,217.43,217.31,11.18577284]
[1734528671443,2.16,217.42,217.31,11.18577284]
[1734528671652,2.16,217.42,217.38,2.3005]
[1734528671836,4.4602,217.42,217.38,2.3005]
[1734528672040,2.16,217.42,217.31,11.18577284]
[1734528672935,11.18577284,217.41,217.29,4.6202]
[1734528673536,2.3008,217.37,217.29,4.6202]
[1734528673741,2.16,217.36,217.29,3.0817]
[1734528673943,2.16,217.35,217.29,3.0817]
[1734528674144,2.3011,217.34,217.29,3.0817]
[1734528674339,2.16,217.35,217.29,1.5946]
[1734528674543,2.16,217.35,217.24,12.69597284]
[1734528674746,2.16,217.35,217.24,14.26647284]
[1734528675348,2.3011,217.34,217.24,14.26647284]
[1734528676153,2.16,217.35,217.26,5.434486]
[1734528676651,2.16,217.35,217.31,2.3013]
[1734528677348,4.461,217.35,217.31,2.3013]
[1734528677552,2.16,217.35,217.32,2.3013]
[1734528677744,2.14,217.35,217.27,11.18577284]
[1734528678050,2.14,217.35,217.34,2.3011]
[1734528678441,2.14,217.35,217.27,11.18577284]
[1734528678641,2.14,217.35,217.31,2.3013]
[1734528679051,2.14,217.35,217.26,5.434486]
[1734528679448,13.32577284,217.35,217.26,5.434486]
[1734528679650,2.3013,217.32,217.26,5.434486]
[1734528680453,2.3013,217.32,217.28,2.3017]
[1734528680953,2.3015,217.3,217.26,2.3019]
[1734528681255,29.1725,217.45,217.24,1.5705]
[1734528681256,2.14,217.29,217.24,1.5705]
[1734528681554,2.3019,217.27,217.23,2.3021]
[1734528681755,2.14,217.26,217.23,2.3021]
[1734528682453,2.14,217.26,217.24,2.3021]
[1734528682660,2.14,217.26,217.2,6.0087463]
[1734528682959,2.14,217.26,217.2,17.19451914]
[1734528684457,2.14,217.26,217.25,2.302]
[1734528684660,2.14,217.29,217.2,17.19451914]
[1734528687259,4.4417,217.29,217.25,2.302]
[1734528688261,4.4417,217.29,217.2,17.19451914]
[1734528688856,13.32577284,217.29,217.2,6.0087463]
[1734528689457,2.3021,217.25,217.21,2.3024]
[1734528689665,2.14,217.24,217.2,0.5302]
[1734528689855,2.14,217.23,217.2,0.5302]
[1734528690258,2.14,217.23,217.21,2.3024]
[1734528692056,2.14,217.23,217.18,1.4514]
[1734528692258,2.14,217.23,217.18,12.63717284]
[1734528692461,2.14,217.23,217.18,18.09552294]
[1734528693360,2.14,217.23,217.22,2.3023]
[1734528693864,2.14,217.23,217.2,2.3025]
[1734528696568,2.14,217.23,217.21,2.3024]
[1734528698970,2.3024,217.22,217.15,1.4783]
[1734528699171,2.14,217.23,217.15,1.4783]
[1734528699561,4.4423,217.23,217.19,2.3026]
[1734528699765,4.4423,217.23,217.15,1.4783]
[1734528700067,11.6105059,217.23,217.16,7.1682059]
[1734528700269,2.3025,217.21,217.16,7.1682059]
[1734528700469,9.3082059,217.23,217.16,7.1682059]
[1734528701469,2.3024,217.22,217.19,2.3026]
[1734528701771,2.14,217.23,217.16,12.57152483]
[1734528702770,2.14,217.23,217.18,2.3028]
[1734528702974,2.14,217.23,217.16,12.57152483]
[1734528703473,7.1682059,217.24,217.16,12.57152483]
[1734528703672,2.16,217.23,217.16,12.57152483]
[1734528703873,4.4623,217.23,217.16,12.57152483]
[1734528704074,2.16,217.23,217.18,7.1682059]
[1734528704275,1.4824,217.34,217.2,7.1682059]
[1734528704571,7.1682059,217.27,217.2,7.1682059]
[1734528704772,2.14,217.26,217.2,7.1682059]
[1734528704972,2.14,217.26,217.16,5.40331893]
[1734528705168,2.14,217.26,217.19,7.1682059]
[1734528705370,4.4419,217.26,217.24,2.3021]
[1734528705673,2.14,217.26,217.24,2.3021]
[1734528706264,4.4419,217.26,217.23,2.3022]
[1734528706471,7.1682059,217.25,217.23,2.3022]
[1734528708079,2.3022,217.24,217.2,2.3025]
[1734528708268,7.1682059,217.23,217.2,2.3025]
[1734528709679,2.3023,217.22,217.19,2.3026]
[1734528709878,2.14,217.21,217.19,2.3026]
[1734528710079,11.6107059,217.21,217.17,2.3028]
[1734528710379,9.3082059,217.21,217.15,1.4783]
[1734528711473,2.14,217.21,217.15,8.6465059]
[1734528711679,2.14,217.21,217.2,2.3026]
[1734528712070,9.3082059,217.23,217.15,8.6465059]
[1734528712573,9.3082059,217.23,217.21,2.3024]
[1734528715079,9.3082059,217.23,217.22,2.3023]
[1734528715682,2.14,217.23,217.22,2.3023]
[1734528716777,9.3082059,217.25,217.24,2.3021]
[1734528716973,2.14,217.26,217.2,7.1682059]
[1734528717575,2.14,217.26,217.25,2.302]
[1734528718076,9.3082059,217.26,217.23,2.3022]
[1734528718584,9.3082059,217.26,217.17,7.1682059]
[1734528718782,2.3021,217.24,217.17,7.1682059]
[1734528719085,9.3082059,217.26,217.17,7.1682059]
[1734528720484,2.302,217.25,217.22,2.3023]
[1734528721377,2.3023,217.23,217.19,2.3026]
[1734528721581,7.1682059,217.22,217.19,2.3026]
[1734528722383,7.1682059,217.22,217.2,2.3025]
[1734528723686,2.14,217.21,217.14,5.45804868]
[1734528723883,7.1682059,217.19,217.14,5.45804868]
[1734528724089,2.14,217.18,217.14,5.45804868]
[1734528724286,2.14,217.18,217.17,2.3029]
[1734528725183,2.3029,217.17,217.14,2.3031]
[1734528725388,2.14,217.18,217.14,2.3031]
[1734528725890,4.4428,217.18,217.14,2.3031]
[1734528727592,2.14,217.18,217.11,12.80006725]
[1734528727787,7.1682059,217.19,217.13,7.1682059]
[1734528727985,2.14,217.18,217.13,7.1682059]
[1734528728183,2.14,217.18,217.17,2.3028]
[1734528728692,7.1682059,217.21,217.19,2.3026]
[1734528728887,2.14,217.2,217.19,2.3026]
[1734528729393,9.4705059,217.23,217.19,2.3026]
[1734528729591,9.4705059,217.23,217.15,7.1682059]
[1734528729592,190.7987241,217.28,217.17,7.1682059]
[1734528729790,7.1682059,217.26,217.19,7.1682059]
[1734528730496,9.4702059,217.26,217.22,2.3023]
[1734528730798,2.14,217.27,217.19,7.1682059]
[1734528730992,9.3082059,217.27,217.24,2.3021]
[1734528731891,2.14,217.26,217.24,2.3021]
[1734528733889,1.5852,217.33,217.25,7.1682059]
[1734528733890,2.14,217.29,217.25,7.1682059]
[1734528734096,2.14,217.28,217.25,7.1682059]
[1734528734296,2.14,217.31,217.25,7.1682059]
[1734528734495,2.14,217.31,217.3,2.3014]
[1734528737701,7.1682059,217.33,217.27,7.1682059]
[1734528737900,2.14,217.32,217.31,2.3014]
[1734528738494,2.14,217.32,217.3,2.3015]
[1734528738801,2.14,217.32,217.27,7.1682059]
[1734528738996,2.14,217.32,217.28,2.3017]
[1734528739300,2.14,217.32,217.23,4.6728]
[1734528739501,2.14,217.32,217.26,7.1682059]
[1734528740404,2.14,217.32,217.3,2.3014]
[1734528741000,2.14,217.32,217.26,7.1682059]
[1734528741801,2.14,217.32,217.3,2.3014]
[1734528742603,2.14,217.32,217.31,2.3014]
[1734528742803,7.1682059,217.37,217.28,7.1682059]
[1734528743098,2.14,217.36,217.28,7.1682059]
[1734528744494,9.4690059,217.37,217.33,2.3011]
[1734528744698,2.14,217.36,217.33,2.3011]
[1734528745101,7.1682059,217.35,217.32,2.3012]
[1734528745296,7.1682059,217.33,217.26,7.1682059]
[1734528745501,7.1682059,217.33,217.23,4.6728]
[1734528745701,9.4694059,217.33,217.29,2.3015]
[1734528746608,7.1682059,217.31,217.27,2.3017]
[1734528746809,2.14,217.3,217.24,7.1682059]
[1734528747308,2.14,217.3,217.28,2.3017]
[1734528748503,2.14,217.3,217.26,2.3018]
[1734528748806,2.14,217.3,217.24,7.1682059]
[1734528749411,2.14,217.3,217.27,2.3017]
[1734528751910,2.14,217.3,217.28,2.3017]
[1734528752114,2.14,217.3,217.24,7.1682059]
[1734528752412,2.14,217.3,217.26,7.1682059]
[1734528752612,7.1682059,217.33,217.26,7.1682059]
[1734528752813,2.14,217.32,217.26,7.1682059]
[1734528753014,7.1682059,217.33,217.26,7.1682059]
[1734528753210,1.5219,217.38,217.28,7.1682059]
[1734528753211,7.1682059,217.35,217.28,7.1682059]
[1734528753405,2.14,217.34,217.28,7.1682059]
[1734528755013,2.14,217.34,217.24,2.14]
[1734528755215,2.14,217.34,217.27,7.1682059]
[1734528755607,7.1682059,217.33,217.28,2.3016]
[1734528755818,7.1682059,217.33,217.24,2.14]
[1734528756011,7.1682059,217.33,217.26,7.1682059]
[1734528756217,2.3014,217.32,217.28,2.3016]
[1734528758818,9.4694059,217.33,217.26,7.1682059]
[1734528759020,2.14,217.34,217.28,7.1682059]
[1734528759719,4.4411,217.34,217.28,7.1682059]
[1734528760214,4.4411,217.34,217.23,4.6728]
[1734528760517,4.4411,217.34,217.27,7.1682059]
[1734528761017,4.4411,217.34,217.23,4.6728]
[1734528761316,4.4411,217.34,217.27,7.1682059]
[1734528761517,4.4411,217.34,217.3,2.3014]
[1734528762317,11.6093059,217.34,217.3,2.3014]
[1734528763121,11.6093059,217.34,217.31,2.3013]
[1734528763510,7.1682059,217.34,217.27,7.1682059]
[1734528763712,2.14,217.33,217.29,7.1682059]
[1734528764321,2.14,217.33,217.23,4.6728]
[1734528764619,2.14,217.33,217.26,7.1682059]
[1734528764815,2.3014,217.31,217.25,7.1682059]
[1734528765217,2.3014,217.31,217.27,2.3017]
[1734528766222,2.3017,217.28,217.25,2.3019]
[1734528766418,2.14,217.27,217.25,2.3019]
[1734528767221,4.4418,217.27,217.22,7.1682059]
[1734528767525,4.4418,217.27,217.24,2.3021]
[1734528771321,4.4418,217.27,217.23,2.3022]
[1734528772417,2.14,217.27,217.21,7.1682059]
[1734528774125,2.14,217.28,217.23,7.1682059]
[1734528774324,2.14,217.28,217.25,7.1682059]
[1734528775522,2.14,217.28,217.27,2.3018]
[1734528777529,2.14,217.28,217.16,36.39381341]
[1734528777530,4.4418,217.28,217.16,36.39381341]
[1734528777730,4.4418,217.28,217.22,7.1682059]
[1734528777927,4.4418,217.28,217.16,36.39381341]
[1734528778128,4.4418,217.28,217.22,7.1682059]
[1734528778628,4.4418,217.28,217.24,2.3021]
[1734528779929,2.3018,217.27,217.24,2.3021]
[1734528781127,7.1682059,217.27,217.16,37.02921341]
[1734528781329,2.3022,217.24,217.2,2.3025]
[1734528781630,2.14,217.23,217.2,2.3025]
[1734528782426,2.14,217.23,217.18,7.1682059]
[1734528782427,2.14,217.23,217.21,2.3024]
[1734528786435,2.14,217.23,217.16,37.02921341]
[1734528786436,9.3082059,217.23,217.16,0.6354]
[1734528787237,7.1682059,217.21,217.16,0.6354]
[1734528787735,2.3027,217.19,217.16,2.9384]
[1734528788128,2.14,217.18,217.16,2.9384]
[1734528788726,2.14,217.18,217.16,0.6354]
[1734528791334,2.14,217.21,217.16,7.8036059]
[1734528791635,2.14,217.21,217.18,7.1682059]
[1734528792137,2.14,217.24,217.2,7.1682059]
[1734528792840,2.14,217.25,217.22,7.1682059]
[1734528793033,7.1682059,217.3,217.24,7.1682059]
[1734528793232,2.14,217.29,217.24,7.1682059]
[1734528793438,2.14,217.29,217.28,2.3017]
[1734528793635,9.4695059,217.32,217.28,2.3017]
[1734528793832,2.14,217.31,217.28,2.3017]
[1734528795439,2.14,217.31,217.26,7.1682059]
[1734528795936,2.14,217.31,217.27,2.3018]
[1734528796240,7.1682059,217.32,217.26,7.1682059]
[1734528796439,7.1682059,217.34,217.31,2.3013]
[1734528796738,1.5372,217.37,217.28,7.1682059]
[1734528796739,2.14,217.33,217.28,7.1682059]
[1734528796934,2.14,217.32,217.28,7.1682059]
[1734528797134,2.14,217.32,217.29,2.3015]
[1734528797329,2.14,217.32,217.28,7.1682059]
[1734528797835,2.14,217.32,217.31,2.3014]
[1734528798132,2.14,217.34,217.3,7.1682059]
[1734528799039,2.14,217.34,217.32,2.3012]
[1734528800842,7.1682059,217.33,217.26,7.1682059]
[1734528801242,9.4695059,217.33,217.28,2.3016]
[1734528801441,7.1682059,217.33,217.26,7.1682059]
[1734528801843,7.1682059,217.33,217.29,2.3015]
[1734528803545,7.1682059,217.33,217.27,9.4699059]
[1734528803843,7.1682059,217.33,217.27,2.3017]
[1734528804441,2.3014,217.31,217.27,2.3017]
[1734528804842,2.3014,217.31,217.28,2.3017]
[1734528815153,2.3012,217.33,217.27,7.1682059]
[1734528815351,2.14,217.31,217.29,7.1682059]
[1734528815656,2.14,217.33,217.29,7.1682059]
[1734528815856,2.14,217.33,217.3,2.3015]
[1734528816057,2.14,217.33,217.29,7.1682059]
[1734528816556,2.14,217.36,217.31,7.1682059]
[1734528817055,2.14,217.36,217.28,7.1682059]
[1734528817255,7.1682059,217.35,217.25,7.12653127]
[1734528817457,7.1682059,217.31,217.25,1.5323]
[1734528817756,4.4415,217.3,217.27,2.3018]
[1734528818255,4.4415,217.3,217.25,8.7005059]
[1734528818256,2.14,217.3,217.25,8.7005059]
[1734528818555,2.14,217.3,217.27,7.1682059]
[1734528818855,2.14,217.32,217.27,7.1682059]
[1734528821357,2.14,217.32,217.3,2.3014]
[1734528821863,2.14,217.32,217.31,2.3014]
[1734528822755,2.14,217.32,217.25,1.5323]
[1734528822960,2.14,217.32,217.27,2.3018]
[1734528823157,7.1682059,217.31,217.27,2.3018]